[Event "5th Sharjah Masters 2022"]
[Site "Sharjah"]
[Date "2022.05.25"]
[Round "5.18"]
[White "Fedoseev, Vladimir"]
[Black "Adly, Ahmed"]
[Result "1-0"]
[ECO "B96"]
[WhiteElo "2701"]
[BlackElo "2596"]
[Annotator "TA"]
[PlyCount "71"]
[EventDate "2022.05.21"]
[EventType "swiss"]
[EventCountry "UAE"]
[SourceTitle "playchess.com"]
[Source "ChessBase"]
[SourceQuality "1"]
[TimeControl "5400+30"]

{[%evp 16,71,54,32,35,25,27,30,36,27,22,27,31,27,24,22,35,28,70,69,62,54,76,35,31,35,42,37,36,8,8,10,75,75,68,60,249,245,215,237,313,308,317,287,315,322,323,331,362,355,335,311,395,401,907,904,843,843]} 1. e4 {[%emt 0:00:19]} c5 {[%emt 0:00:11]} 2. Nf3 {[%emt 0:00:07]} d6 {[%emt 0:00:04]} 3. d4 {[%emt 0:00:12]} cxd4 {[%emt 0:00:03]} 4. Nxd4 {[%emt 0:00:11]} Nf6 {[%emt 0:00:02]} 5. Nc3 {[%emt 0:00:12]} a6 {[%emt 0:00:02]} 6. Bg5 {[%emt 0:02:52]} e6 {[%emt 0:01:19]} 7. f4 {[%emt 0:00:21]} Qc7 {[%emt 0:02:06]} 8. Bxf6 {[%emt 0:05:52]} gxf6 {[%emt 0:00:03]} 9. Be2 {[%emt 0:02:39] Recently 9.Qf3 got a lot of attention.} Nc6 {[%emt 0:00:48] B96: Sicilian Najdorf: 6 Bg5 e6 7 f4, lines other than 7...Qb6 and 7...Be7.} 10. Qd3 {[%emt 0:02:44]} Nxd4 {[%emt 0:11:01]} 11. Qxd4 {[%emt 0:00:03]} Qc5 {[%emt 0:00:05] White has an edge.} 12. Qd3 $5 {[%emt 0:09:33][%mdl 4] Leaves trodden paths.} Bd7 {[%emt 0:01:32]} 13. O-O-O {[%emt 0:00:48]} O-O-O {[%emt 0:08:31]} 14. Kb1 {[%emt 0:00:22]} Kb8 {[%emt 0:00:29]} 15. Rhf1 {[%emt 0:00:19][%cal Bh1f1,Bf1f3,Bf3g3,Bg3g7][%mdl 32] [#]} Rc8 $146 {[%emt 0:02:33]} ({Predecessor:} 15... h5 16. a3 Rc8 17. Bf3 Rc7 18. h4 Bh6 19. Be2 Bf8 20. Qd4 Be7 21. Qd3 {½-½ (21) Barash,D-Kopylov,I USSR 1986}) 16. f5 {[%emt 0:05:24]} Qe5 {[%emt 0:00:16]} 17. Bh5 {[%emt 0:00:13]} Be8 {[%emt 0:00:08]} 18. Qh3 {[%emt 0:00:18]} Be7 {[%emt 0:01:40]} 19. Rf3 {[%emt 0:03:04]} Bd8 {[%emt 0:16:13]} 20. Qg3 {[%emt 0:05:52]} Qxg3 {[%emt 0:02:54]} 21. Rxg3 {[%emt 0:00:13]} Rc5 {[%emt 0:00:30]} 22. Rg7 {[%emt 0:10:07]} (22. Rxd6 Bc7 23. Rgd3 Bxd6 24. Rxd6 exf5 $17) 22... exf5 {[%emt 0:00:54]} 23. Bf3 {[%emt 0:02:24]} (23. Bxf7 Rc7 24. Rg8 Rxg8 25. Bxg8 Rg7 $15) 23... h5 {[%emt 0:08:11] [#]} (23... Be7 $11 {remains equal.}) 24. exf5 $1 $16 {[%emt 0:04:55]} (24. Rxd6 $6 Be7 25. Rb6 Bf8 $15) 24... Rxf5 {[%emt 0:00:43]} 25. Ne4 $36 {[%emt 0:00:10][%mdl 2048] Inhibits Rg5. White is more active. White is much more active.} (25. Rxd6 Bc7 26. Rd5 Re5 $11) 25... Rg5 $2 {[%emt 0:15:10] This costs Black the game.} 26. Nxg5 $18 {[%emt 0:07:02]} fxg5 {[%emt 0:01:56]} 27. Rxd6 {[%emt 0:02:27]} Bc7 {[%emt 0:00:02]} 28. Rd1 {[%emt 0:00:33]} g4 {[%emt 0:01:02]} 29. Bd5 {[%emt 0:01:52]} Be5 {[%emt 0:03:19]} 30. Rg5 {[%emt 0:00:06]} (30. Bxf7 Bxg7 31. Rd8+ Kc7 32. Rxe8 Rxe8 33. Bxe8 h4 $14) 30... Bxh2 {[%emt 0:00:05]} 31. Rh1 {[%emt 0:00:32]} g3 {[%emt 0:00:22]} 32. Re1 {[%emt 0:03:03]} Bd7 {[%emt 0:07:14]} 33. Re7 {[%emt 0:03:39]} ({Don't play} 33. Bxf7 $6 Bc6 $18) 33... Rd8 {[%emt 0:01:13]} 34. Rxh5 {[%emt 0:00:51]} Bh3 {[%emt 0:02:21]} (34... f5 $142 35. c4 Bc8) 35. Rxb7+ {[%emt 0:02:08]} ({Less strong is} 35. gxh3 g2 36. Re1 (36. Rxb7+ $2 Kc8 $19) 36... g1=Q 37. Rxg1 Bxg1 $16) 35... Kc8 {[%emt 0:00:09]} 36. Bf3 {[%emt 0:00:23] Weighted Error Value: White=0.06 (flawless) /Black=0.29 (precise)} 1-0

[Event "5th Sharjah Masters 2022"]
[Site "Sharjah"]
[Date "2022.05.25"]
[Round "5.20"]
[White "Kadric, Denis"]
[Black "Jumabayev, Rinat"]
[Result "1/2-1/2"]
[ECO "B12"]
[WhiteElo "2576"]
[BlackElo "2628"]
[Annotator "TA"]
[PlyCount "77"]
[EventDate "2022.05.21"]
[EventType "swiss"]
[EventCountry "UAE"]
[SourceTitle "playchess.com"]
[Source "ChessBase"]
[SourceQuality "1"]
[TimeControl "5400+30"]

{[%evp 9,77,0,0,0,0,0,15,0,17,3,15,0,45,38,44,48,62,65,62,49,73,51,51,-13,-14,-18,-28,-65,-72,-82,-61,-87,-87,-87,-87,-87,-86,-94,-91,-329,-325,-325,-302,-306,-290,-743,-743,-695,-618,-613,0,0,0,-602,-602,-1341,-1265,-1381,-1050,-5406,-604,-587,-582,-574,-555,-483,0,0,487,472]} 1. e4 {[%emt 0:00:03]} c6 {[%emt 0:00:04]} 2. d4 {[%emt 0:00:18]} d5 {[%emt 0:00:05]} 3. e5 {[%emt 0:00:02]} c5 {[%emt 0:00:08]} 4. Nf3 {[%emt 0:01:05]} cxd4 {[%emt 0:00:06]} 5. Qxd4 {[%emt 0:00:03]} Nc6 {[%emt 0:00:09]} 6. Qf4 {[%emt 0:00:02] B12: Caro-Kann: Advance Variation.} e6 {[%emt 0:00:09]} 7. Nc3 {[%emt 0:00:53]} Nb4 {[%emt 0:01:05]} 8. Bd3 {[%emt 0:00:05] The position is equal.} Bd7 {[%emt 0:00:04]} 9. Bd2 {[%emt 0:02:20] [#]} Rc8 $146 {[%emt 0:09:35]} ({Predecessor:} 9... h6 10. h4 Nxd3+ 11. cxd3 Ne7 12. h5 Nc6 13. Nb5 a6 14. Nd6+ Bxd6 15. exd6 Qf6 16. d4 Qxf4 17. Bxf4 f6 18. Kd2 Kf7 19. Rac1 Rhc8 20. Rc3 {½-½ (20) Parvanyan,A (2453)-Khenkin,I (2540) Kiel 2021}) 10. O-O {[%emt 0:01:29]} (10. Ng5 Nxd3+ 11. cxd3 Nh6 $15) 10... Nh6 {[%emt 0:07:05]} 11. Nd4 {[%emt 0:06:41]} Bc5 {[%emt 0:30:28][%cal Og7g5]} 12. Nce2 {[%emt 0:02:53] Strongly threatening Bxb4.} Nxd3 {[%emt 0:02:35]} 13. cxd3 {[%emt 0:00:29]} f6 {[%emt 0:15:33]} 14. Qg3 $1 {[%emt 0:39:12]} Nf7 {[%emt 0:03:53]} 15. Qxg7 {[%emt 0:02:21] Threatens to win with Nf3. White is more active.} fxe5 {[%emt 0:00:06]} 16. Nf3 {[%emt 0:00:01]} ({White should play} 16. Nb3 $1 $14) 16... Bf8 $11 {[%emt 0:01:39]} 17. Qg4 {[%emt 0:00:03]} Qf6 {[%emt 0:02:25]} 18. d4 {[%emt 0:18:30]} e4 {[%emt 0:04:59]} 19. Ne5 {[%emt 0:00:39]} Rc2 {[%emt 0:02:41]} 20. Rad1 {[%emt 0:06:32]} Nxe5 {[%emt 0:13:42]} 21. dxe5 {[%emt 0:00:02]} Qg6 $36 {[%emt 0:00:06][%mdl 2048] Black is really pushing.} ({Reject} 21... Qxe5 $6 22. Bc3 Rxc3 23. Nxc3 $11) 22. Qh3 {[%emt 0:01:05]} Rg8 $1 {[%emt 0:00:12]} ({Of course not} 22... Rxb2 $6 23. Qc3 Rb6 24. Qa5 $11) 23. Nf4 {[%emt 0:12:22]} Qg4 {[%emt 0:00:34]} 24. Qxh7 $2 {[%emt 0:02:38] [#]} (24. Qxg4 $17 Rxg4 25. h3) 24... Rxd2 $1 $19 {[%emt 0:00:36][%mdl 576] Remove Defender} 25. Rxd2 {[%emt 0:00:01][%cal Od2c2] And now Rc2! would win.} Qxf4 {[%emt 0:00:09]} 26. Qxg8 {[%emt 0:00:02]} Qxd2 {[%emt 0:00:07]} 27. f3 $2 {[%emt 0:03:28]} (27. Qg6+ Kd8 28. Qg8) 27... e3 {[%emt 0:02:10][%cal Be4e3,Be3e2][%mdl 32]} 28. Qg6+ {[%emt 0:00:01]} Kd8 {[%emt 0:00:08]} 29. Qg8 {[%emt 0:00:02]} Ke8 {[%emt 0:01:37]} 30. Qg6+ {[%emt 0:00:04]} Kd8 {[%emt 0:00:03] ( -> ...e2)} 31. Qg8 {[%emt 0:00:02]} Qb4 {[%emt 0:00:07] aiming for ...e2.} 32. Rc1 {[%emt 0:01:04]} e2 {[%emt 0:02:52]} 33. Kf2 {[%emt 0:00:02] Against e1Q+} Bb5 {[%emt 0:01:05]} 34. a4 {[%emt 0:02:20]} Qd4+ {[%emt 0:00:39]} (34... Qh4+ $142 35. g3 Qxh2+ 36. Ke3 d4+ 37. Kxd4 Qf2+ 38. Ke4 e1=Q+ 39. Rxe1 Qxe1+ 40. Kf4 Qb4+ 41. Ke3 Bxa4) 35. Kg3 {[%emt 0:00:02]} Qxe5+ {[%emt 0:00:12]} 36. Kf2 {[%emt 0:00:00] [#]} Qd4+ $1 {[%emt 0:00:26]} 37. Kg3 {[%emt 0:00:02]} Qe5+ $2 {[%emt 0:00:36]} (37... Qb4 $19 38. axb5 e1=B+ 39. Rxe1 Qxe1+ 40. Kh3 Ke8) 38. Kf2 $11 {[%emt 0:00:01] Dancing on a razor blade.} Qg7 {[%emt 0:01:20][%mdl 8192]} (38... e1=B+ $11 {and Black is okay.} 39. Rxe1 Qd4+ 40. Kg3 Qb4 41. Rxe6 Bxa4) 39. Qxg7 {[%emt 0:03:01][%mdl 32768] Never resign too early!  Weighted Error Value: White=0.74/Black=0.68. An unexpected result.} 1/2-1/2

[Event "5th Sharjah Masters 2022"]
[Site "Sharjah"]
[Date "2022.05.25"]
[Round "5.21"]
[White "Ivic, Velimir"]
[Black "Sanal, Vahap"]
[Result "0-1"]
[ECO "D38"]
[WhiteElo "2623"]
[BlackElo "2575"]
[Annotator "TA"]
[PlyCount "142"]
[EventDate "2022.05.21"]
[EventType "swiss"]
[EventCountry "UAE"]
[SourceTitle "playchess.com"]
[Source "ChessBase"]
[SourceQuality "1"]
[TimeControl "5400+30"]

{[%evp 11,142,20,24,10,25,0,17,20,16,9,15,13,30,15,32,0,38,0,0,0,0,0,23,35,29,30,23,-18,-15,-9,0,-19,-25,-28,-27,-32,-2,-26,-22,-21,0,0,0,0,0,-8,-14,-13,-13,-11,-10,-12,-6,-33,-12,-21,-15,-35,-35,-35,-35,-35,-19,-19,0,-39,0,-19,-19,-19,-19,-19,-19,-19,0,0,0,0,0,0,0,0,0,-2,0,-12,0,0,0,-1,-2,-8,-8,-9,-8,-14,-15,-61,-73,-136,-126,-120,-138,-125,-74,-166,-145,-168,-145,-179,-179,-242,-240,-378,-333,-443,-443,-410,-399,-899,-889,-895,-890,-784,-799,-841,-879,-841,-877,-664,-528,-503,-481]} 1. d4 {[%emt 0:00:11]} Nf6 {[%emt 0:01:59]} 2. c4 {[%emt 0:00:10]} e6 {[%emt 0:00:09]} 3. Nf3 {[%emt 0:00:45]} d5 {[%emt 0:00:09]} 4. Nc3 {[%emt 0:00:14]} Bb4 {[%emt 0:01:31]} 5. Qa4+ {[%emt 0:00:31]} Nc6 {[%emt 0:00:08]} 6. e3 {[%emt 0:00:13]} O-O {[%emt 0:00:37]} 7. Qc2 {[%emt 0:00:40] D38: Queen's Gambit Declined: Ragozin Defence (4 Nf3 Bb4).} Re8 {[%emt 0:00:50]} 8. Bd2 {[%emt 0:01:25]} Bf8 {[%emt 0:04:15] The main line 8...Bf8 scores better than 8...a6.} 9. a3 {[%emt 0:00:38] The position is equal.} e5 {[%emt 0:00:55]} 10. dxe5 {[%emt 0:01:27]} (10. Nxe5 {feels hotter.} Nxe5 11. dxe5 Rxe5 12. cxd5 Bf5 13. Bd3) 10... Nxe5 {[%emt 0:00:07]} 11. cxd5 {[%emt 0:00:45]} Nxf3+ {[%emt 0:02:03]} 12. gxf3 {[%emt 0:00:06]} Nxd5 {[%emt 0:00:07]} 13. O-O-O {[%emt 0:01:02]} a5 {[%emt 0:09:23][%cal Od5b4]} 14. Nxd5 {[%emt 0:01:12]} (14. Rg1 {is more complex.} Nb4 15. axb4 axb4 16. Nb1) 14... Qxd5 {[%emt 0:01:27]} 15. Bd3 {[%emt 0:00:21]} g6 {[%emt 0:11:08]} 16. h4 {[%emt 0:08:43][%cal Bh2h4,Bh4h5,Bh5h6][%mdl 32] [#]} Qc5 $146 {[%emt 0:04:55]} ({Predecessor:} 16... Be6 17. Bc3 Qb3 18. Be4 Qxc2+ 19. Kxc2 c6 20. h5 Bg7 21. Bxg7 Kxg7 22. h6+ Kf6 {1-0 (48) Vogel,R (2447)-Donchenko,A (2636) Germany 2022}) 17. Qxc5 {[%emt 0:13:56]} Bxc5 {[%emt 0:00:07]} 18. h5 {[%emt 0:00:11] And now hxg6 would win.} Bf8 {[%emt 0:02:46]} 19. h6 {[%emt 0:17:52]} Be6 {[%emt 0:04:20]} 20. Bc3 {[%emt 0:01:52]} Red8 {[%emt 0:01:27]} (20... Bb3 {seems wilder.} 21. Bc2 a4 22. Rd7 Bxc2 23. Kxc2 Re7) 21. Be4 {[%emt 0:26:09]} Rxd1+ {[%emt 0:01:14]} 22. Kxd1 {[%emt 0:00:05]} c6 {[%emt 0:03:52]} 23. Bf6 {[%emt 0:00:55]} a4 {[%emt 0:03:07]} 24. Ke2 {[%emt 0:03:01]} Re8 {[%emt 0:01:27]} 25. Bd3 {[%emt 0:02:18] Prevents Bc4.} Bb3 {[%emt 0:03:53]} 26. f4 $1 {[%emt 0:01:09]} Re6 {[%emt 0:03:27]} 27. Bc3 {[%emt 0:00:19]} f5 {[%emt 0:01:38]} 28. Be5 {[%emt 0:00:52]} Kf7 {[%emt 0:05:02]} 29. f3 $1 {[%emt 0:01:02]} Re8 {[%emt 0:00:42]} 30. e4 {[%emt 0:01:10]} Be6 {[%emt 0:00:07]} 31. Bc2 {[%emt 0:06:27]} Ra8 {[%emt 0:04:34]} 32. Rd1 {[%emt 0:03:21]} fxe4 {[%emt 0:00:51]} (32... Bxh6 $2 33. Rh1 Bc4+ 34. Ke3 $18) 33. Bxe4 {[%emt 0:00:11]} Be7 {[%emt 0:01:50]} (33... Bxh6 $2 34. Rh1 Bg7 35. Rxh7 $18) 34. Rg1 {[%emt 0:01:55][%cal Of4f5]} Rd8 {[%emt 0:02:45]} 35. Bd3 {[%emt 0:01:53][%cal Of4f5] Prevents Bc4.} Bd5 {[%emt 0:05:05][%cal Od5f3]} 36. Rg3 {[%emt 0:02:28]} Bh4 {[%emt 0:12:35]} 37. Rh3 {[%emt 0:00:23]} Be7 {[%emt 0:00:28]} 38. Rg3 {[%emt 0:00:10]} Bh4 {[%emt 0:00:06]} 39. Rh3 {[%emt 0:00:05]} Bf6 {[%emt 0:00:26]} 40. Bxf6 {[%emt 0:00:29]} Kxf6 $11 {[%emt 0:00:02][%mdl 4096] Endgame KRB-KRB} 41. Rg3 {[%emt 0:01:52]} Rd7 {[%emt 0:01:21]} 42. Ke3 {[%emt 0:02:11]} Re7+ {[%emt 0:00:38]} 43. Be4 {[%emt 0:00:17]} Be6 {[%emt 0:01:41]} 44. Rg1 {[%emt 0:00:38]} Rd7 {[%emt 0:01:00]} 45. Rc1 {[%emt 0:00:17]} Rd8 {[%emt 0:00:45]} 46. Rc5 {[%emt 0:00:52]} Ra8 {[%emt 0:01:00] Against Ra5} 47. Rc2 {[%emt 0:00:38]} Ra5 {[%emt 0:00:18]} 48. Rd2 {[%emt 0:00:38]} Ke7 {[%emt 0:01:04]} 49. Rd4 {[%emt 0:00:26]} Bc8 {[%emt 0:02:35]} 50. Rb4 {[%emt 0:00:33]} Kd6 {[%emt 0:00:22]} 51. f5 {[%emt 0:00:29]} gxf5 {[%emt 0:00:44]} 52. Bc2 {[%emt 0:00:18]} Re5+ {[%emt 0:02:41]} 53. Kf4 {[%emt 0:00:02]} Re6 {[%emt 0:00:12]} 54. Rd4+ {[%emt 0:01:02]} (54. Rxa4 $11 {might be stronger.} Rxh6 55. Rd4+ Kc7 56. Rd2) 54... Kc7 $1 $15 {[%emt 0:01:02]} 55. Bxa4 {[%emt 0:00:39]} (55. Rxa4 $142 Rxh6 56. Kg3) 55... Rxh6 $17 {[%emt 0:00:04] White must now prevent ...c5.} 56. Ke5 {[%emt 0:00:22]} Rh2 {[%emt 0:00:38] Against Rd2} 57. b4 {[%emt 0:00:15] [#]} Ra2 {[%emt 0:00:29]} (57... h5 $142 $1 58. Bb3 Rf2) 58. Rh4 {[%emt 0:00:47]} (58. Rd3 $17 {is a better defense.}) 58... Rxa3 $19 {[%emt 0:00:21]} 59. Rxh7+ {[%emt 0:00:19]} Kb6 {[%emt 0:00:14]} 60. Bd1 {[%emt 0:00:24]} Rd3 {[%emt 0:00:28]} 61. Ba4 {[%emt 0:00:52]} (61. Bc2 $142 Rxf3 62. Rh8) 61... Rxf3 {[%emt 0:00:33] Hoping for ...Re3+.} 62. Rh8 {[%emt 0:00:32]} (62. Rh4 $142) 62... Re3+ {[%emt 0:00:14]} 63. Kd4 {[%emt 0:00:01]} Re4+ {[%emt 0:00:05]} 64. Kc3 {[%emt 0:00:03]} Be6 {[%emt 0:00:08] [#] aiming for ...Rc4+.} 65. Rh6 $2 {[%emt 0:01:13]} (65. Bc2 Rc4+ 66. Kd2) 65... Bd5 {[%emt 0:01:03] Black is clearly winning.} 66. Bc2 {[%emt 0:00:10]} Rc4+ {[%emt 0:00:10]} 67. Kd2 {[%emt 0:00:02]} Be4 {[%emt 0:00:28]} 68. Bb3 {[%emt 0:01:26]} Rxb4 {[%emt 0:00:04]} 69. Kc3 {[%emt 0:00:03]} Kc5 {[%emt 0:00:38]} 70. Rh7 {[%emt 0:00:20]} Rb5 {[%emt 0:01:03]} 71. Re7 {[%emt 0:00:51]} Bd5 {[%emt 0:02:23] Weighted Error Value: White=0.08 (flawless) /Black=0.07 (flawless)} 0-1

[Event "5th Sharjah Masters 2022"]
[Site "Sharjah"]
[Date "2022.05.25"]
[Round "5.22"]
[White "Aryan Chopra"]
[Black "Badelka, Olga"]
[Result "1-0"]
[ECO "C54"]
[WhiteElo "2609"]
[BlackElo "2453"]
[Annotator "TA"]
[PlyCount "69"]
[EventDate "2022.05.21"]
[EventType "swiss"]
[EventCountry "UAE"]
[SourceTitle "playchess.com"]
[Source "ChessBase"]
[SourceQuality "1"]
[TimeControl "5400+30"]

{[%evp 15,69,18,14,10,10,4,18,0,33,26,34,42,92,100,104,108,91,96,101,92,171,133,151,146,190,171,226,127,228,243,238,232,243,222,235,241,243,244,285,243,263,259,270,257,371,375,375,375,407,419,558,559,552,584,574,563]} 1. e4 {[%emt 0:00:03]} e5 {[%emt 0:00:07]} 2. Nf3 {[%emt 0:00:04]} Nc6 {[%emt 0:00:06]} 3. Bc4 {[%emt 0:00:18]} Bc5 {[%emt 0:00:11]} 4. c3 {[%emt 0:00:08]} Nf6 {[%emt 0:00:15]} 5. d3 {[%emt 0:00:05]} O-O {[%emt 0:00:32]} 6. O-O {[%emt 0:00:06]} d5 {[%emt 0:00:29]} 7. exd5 {[%emt 0:00:17]} Nxd5 {[%emt 0:00:06]} 8. Re1 {[%emt 0:00:14]} Bg4 {[%emt 0:00:45]} 9. Nbd2 {[%emt 0:00:19] C54: Giuoco Piano: 4 c3 Nf6, main lines with 5 d4 and 5 d3.} Nb6 {[%emt 0:04:10]} 10. h3 {[%emt 0:00:09]} Bh5 {[%emt 0:01:31]} 11. Bb3 $1 {[%emt 0:00:23][%mdl 4] The position is equal. is now more promising than 11.Bb5.} Kh8 {[%emt 0:00:35]} 12. Ne4 {[%emt 0:01:00]} Be7 {[%emt 0:03:17]} 13. Ng3 {[%emt 0:03:54]} Bg6 {[%emt 0:11:30]} (13... Bxf3 $14 14. Qxf3 f5) 14. Nxe5 $16 {[%emt 0:11:27]} Nxe5 {[%emt 0:00:07]} 15. Rxe5 {[%emt 0:00:04]} Bd6 {[%emt 0:00:15] [#]} 16. Re1 $146 {[%emt 0:03:08] White is more active.} ({Predecessor:} 16. Re3 f5 17. Re1 Qh4 18. Nf1 Rae8 19. Rxe8 Bxe8 20. f3 Bc6 21. Be3 Nd5 22. Bxd5 Bxd5 {1-0 (39) Michiels,B (2489)-Ris,R (2418) Amsterdam 2011}) 16... Bxg3 {[%emt 0:00:22]} 17. fxg3 {[%emt 0:00:04]} Bxd3 {[%emt 0:02:08]} (17... a5 $16) 18. Qf3 {[%emt 0:07:41] [#] Black must now prevent Rd1.} c5 {[%emt 0:20:36]} 19. Qxb7 {[%emt 0:16:58]} c4 {[%emt 0:00:40]} 20. Bd1 {[%emt 0:00:05]} Re8 {[%emt 0:24:05]} (20... a5 $142 21. Qf3 Nd5) 21. Rxe8+ $18 {[%emt 0:00:24]} Qxe8 {[%emt 0:00:04] [#]} 22. Bf3 $1 {[%emt 0:00:06][%cal Oa2a4] Strongly threatening a4!} f5 {[%emt 0:06:33]} 23. Bf4 {[%emt 0:06:59]} Be4 {[%emt 0:04:15]} 24. Bxe4 $40 {[%emt 0:00:08][%mdl 128] White has strong attack.} Qxe4 {[%emt 0:00:04]} 25. Qxe4 {[%emt 0:00:08]} fxe4 {[%emt 0:00:04][%mdl 4096] Endgame KRB-KRN} 26. Rd1 {[%emt 0:01:07]} Na4 {[%emt 0:07:02]} 27. Rd2 {[%emt 0:03:25]} h6 {[%emt 0:04:28]} 28. Kf2 {[%emt 0:00:42]} Nc5 {[%emt 0:03:39]} 29. Ke3 {[%emt 0:00:28]} g5 {[%emt 0:02:25]} (29... Nd3 $142 30. Kxe4 Rd8) 30. Be5+ {[%emt 0:02:12]} Kh7 {[%emt 0:00:27]} 31. Bd4 {[%emt 0:00:06]} Nd3 {[%emt 0:00:25]} 32. Kxe4 {[%emt 0:00:05]} Rb8 {[%emt 0:03:50]} 33. b4 {[%emt 0:02:33] White is clearly winning.} cxb3 {[%emt 0:00:55]} 34. axb3 {[%emt 0:00:04][%cal Ba2b3,Bb3b4][%mdl 32]} ({Stronger than} 34. Rxd3 b2 35. Rd1 b1=Q+ 36. Rxb1 Rxb1 $11) 34... Nc1 {[%emt 0:00:03]} 35. b4 {[%emt 0:00:04] Black got outplayed after the opening.  Weighted Error Value: White=0.05 (flawless) /Black=0.24 (precise)} 1-0

[Event "5th Sharjah Masters 2022"]
[Site "Sharjah"]
[Date "2022.05.25"]
[Round "5.23"]
[White "Haznedaroglu, Kivanc"]
[Black "Hovhannisyan, Robert"]
[Result "0-1"]
[ECO "B18"]
[WhiteElo "2425"]
[BlackElo "2607"]
[Annotator "TA"]
[PlyCount "116"]
[EventDate "2022.05.21"]
[EventType "swiss"]
[EventCountry "UAE"]
[SourceTitle "playchess.com"]
[Source "ChessBase"]
[SourceQuality "1"]
[TimeControl "5400+30"]

{[%evp 17,116,0,7,-14,-9,-12,0,-8,8,-18,-12,-27,-8,-12,0,-1,-4,-22,20,0,16,19,29,22,28,15,22,8,18,12,6,8,11,0,0,0,0,0,0,0,0,0,0,-16,-12,-22,-22,-21,0,0,0,0,7,0,0,0,0,0,0,0,0,-7,0,-388,-381,-383,-340,-361,-377,-507,-458,-458,-247,-527,-526,-454,-521,-510,-478,-835,-669,-5380,-5432,-2391,-1687,-5073,-4386,-29959,-29958,-29972,-29972,-29974,-29975,-29976,-29977,-29977,-29978,-29985,-29985,-29985,-29986]} 1. e4 {[%emt 0:00:02]} c6 {[%emt 0:00:10]} 2. d4 {[%emt 0:02:24]} d5 {[%emt 0:00:07]} 3. Nc3 {[%emt 0:02:21]} dxe4 {[%emt 0:00:08]} 4. Nxe4 {[%emt 0:00:03]} Bf5 {[%emt 0:00:30][%cal Bc8f5,Bf5g6,Bg6h7][%mdl 32]} 5. Ng3 {[%emt 0:00:18]} Bg6 {[%emt 0:00:07]} 6. h4 {[%emt 0:00:18]} h6 {[%emt 0:00:06]} 7. Nh3 {[%emt 0:00:36]} e6 {[%emt 0:01:24]} 8. Nf4 {[%emt 0:01:05]} Bh7 {[%emt 0:00:07]} 9. Bc4 {[%emt 0:00:04]} Nf6 {[%emt 0:01:21]} 10. Be3 {[%emt 0:08:04] B18: Classical Caro-Kann: 4...Bf5 sidelines.} Nbd7 {[%emt 0:07:07]} 11. Qe2 {[%emt 0:02:18]} Nb6 {[%emt 0:21:46]} 12. Bd3 {[%emt 0:03:03] The position is equal.} Bxd3 {[%emt 0:00:34]} 13. Qxd3 {[%emt 0:00:03]} Nbd5 {[%emt 0:04:17]} 14. Nxd5 {[%emt 0:15:00]} cxd5 {[%emt 0:01:18]} 15. O-O-O {[%emt 0:01:49]} Bd6 {[%emt 0:00:41]} 16. Ne2 {[%emt 0:00:55]} Qc7 {[%emt 0:01:18]} 17. f3 {[%emt 0:00:20] [#]} O-O-O $146 {[%emt 0:08:28]} (17... Qc4 $5 {[%cal Rc4a2]}) ({Predecessor:} 17... Ke7 18. Qd2 Rac8 {½-½ (18) Opdahl,A (1871)-Garberg,T (1914) Lillehammer 2013}) 18. h5 {[%emt 0:01:29]} Kb8 {[%emt 0:00:56]} 19. Kb1 {[%emt 0:01:12]} Rc8 {[%emt 0:01:04]} 20. g4 {[%emt 0:00:40]} Nd7 {[%emt 0:01:12]} 21. Bc1 {[%emt 0:03:44]} Ka8 {[%emt 0:01:52]} 22. Rhg1 {[%emt 0:09:14]} Qa5 {[%emt 0:06:35]} 23. Bd2 {[%emt 0:05:59]} Qd8 {[%emt 0:03:08]} 24. Rc1 {[%emt 0:07:16]} Qe7 {[%emt 0:01:49]} 25. c4 {[%emt 0:03:59]} dxc4 {[%emt 0:00:49]} 26. Rxc4 {[%emt 0:02:00]} Rxc4 {[%emt 0:00:36]} 27. Qxc4 {[%emt 0:00:02]} Nb6 {[%emt 0:00:36][%cal Bd7b6,Bb6d5,Bd5c3][%mdl 32]} 28. Qd3 {[%emt 0:00:01]} Qd7 {[%emt 0:01:30]} 29. Rc1 {[%emt 0:00:37]} Bb8 {[%emt 0:01:47]} 30. Qe4 {[%emt 0:03:33]} Nd5 {[%emt 0:01:20]} 31. Nc3 {[%emt 0:03:44]} f5 {[%emt 0:13:22]} 32. gxf5 {[%emt 0:01:37]} Nxc3+ {[%emt 0:00:05]} (32... Nf6 {is interesting.} 33. Qxe6 Qxd4 34. Rc2 Qd3) 33. Bxc3 {[%emt 0:00:05]} exf5 {[%emt 0:00:04]} 34. Qd3 {[%emt 0:00:06]} Qf7 {[%emt 0:00:34]} 35. Rg1 {[%emt 0:04:31]} Rd8 {[%emt 0:03:01]} 36. a3 {[%emt 0:03:09]} Rd7 {[%emt 0:01:25]} 37. Rg6 {[%emt 0:00:02]} Qd5 {[%emt 0:00:46]} 38. Qe2 {[%emt 0:00:57]} f4 {[%emt 0:01:19]} 39. Qe4 {[%emt 0:09:07]} Qxh5 {[%emt 0:00:52][%cal Od7e7] White must now prevent ...Re7!} 40. a4 $2 {[%emt 0:00:33][%mdl 8192] [#] Black keeps a firm grip on the game.} (40. d5 $11) 40... Re7 $3 $19 {[%emt 0:01:37][%mdl 512]} 41. Qxe7 {[%emt 0:00:05]} Qxg6+ {[%emt 0:00:04][%mdl 4096] Endgame KQB-KQB} 42. Ka2 {[%emt 0:00:04]} Qc6 {[%emt 0:01:11][%csl LRa4,LRf3]} 43. Qxg7 {[%emt 0:03:57]} Qxa4+ {[%emt 0:00:12]} 44. Kb1 {[%emt 0:00:00]} Qd1+ {[%emt 0:00:12]} 45. Ka2 {[%emt 0:00:01]} Qxf3 {[%emt 0:00:50]} 46. Qxh6 {[%emt 0:00:30]} Qd5+ {[%emt 0:07:40]} 47. Ka1 {[%emt 0:00:13]} Qg2 {[%emt 0:00:14] Prevents Qh3.} 48. Qh4 {[%emt 0:01:24]} (48. Be1 $142 Qg1 49. Qh4) 48... Qg3 {[%emt 0:00:22]} 49. Be1 {[%emt 0:00:58]} Qxh4 {[%emt 0:02:54]} 50. Bxh4 {[%emt 0:00:09] KB-KB} b5 {[%emt 0:00:04]} 51. d5 {[%emt 0:01:40]} Kb7 {[%emt 0:00:34] ( -> ...Kc7)} 52. Ka2 {[%emt 0:01:26]} Kc7 {[%emt 0:00:46] Black mates.} 53. Kb3 {[%emt 0:00:05]} Kd6 {[%emt 0:00:18]} 54. Kb4 {[%emt 0:00:03]} a6 {[%emt 0:02:01]} 55. Ka5 {[%emt 0:00:37]} Kxd5 {[%emt 0:00:08]} 56. Kxa6 {[%emt 0:00:04]} Kc6 {[%emt 0:00:13]} 57. b4 {[%emt 0:01:46]} Be5 {[%emt 0:00:29]} 58. Bf2 {[%emt 0:02:34]} Bc3 {[%emt 0:00:11] Weighted Error Value: White=0.65/Black=0.03 (flawless)} 0-1